[Event "Live Chess"]
[Site "Chess.com"]
[Date "2023.05.21"]
[Round "-"]
[White "GMHarry-youtube"]
[Black "manthanit"]
[Result "0-1"]
[WhiteElo "2027"]
[BlackElo "1113"]
[TimeControl "300"]
[EndTime "7:32:12 PDT"]
[Termination "manthanit won by checkmate"]

1. e4 {[%clk 0:04:59.4]} 1... e6 {[%clk 0:04:57.4]} 2. d4 {[%clk 0:04:57.6]}
2... d6 {[%clk 0:04:54]} 3. e5 {[%clk 0:04:57.5]} 3... dxe5 {[%clk 0:04:52.9]}
4. dxe5 {[%clk 0:04:54.9]} 4... Qxd1+ {[%clk 0:04:52.4]} 5. Kxd1 {[%clk
0:04:54.8]} 5... Nc6 {[%clk 0:04:49.9]} 6. f4 {[%clk 0:04:52]} 6... f6 {[%clk
0:04:47.4]} 7. exf6 {[%clk 0:04:49.6]} 7... Nxf6 {[%clk 0:04:46.7]} 8. Nf3
{[%clk 0:04:49]} 8... Bd6 {[%clk 0:04:45.6]} 9. Bb5 {[%clk 0:04:47.2]} 9... Bd7
{[%clk 0:04:44.1]} 10. c3 {[%clk 0:04:45]} 10... O-O-O {[%clk 0:04:43.1]} 11.
Ke2 {[%clk 0:04:42.9]} 11... a6 {[%clk 0:04:40.7]} 12. Bd3 {[%clk 0:04:36.9]}
12... Ne7 {[%clk 0:04:38.9]} 13. h3 {[%clk 0:04:27.2]} 13... g6 {[%clk
0:04:37.7]} 14. Be3 {[%clk 0:04:23.8]} 14... Nf5 {[%clk 0:04:36.2]} 15. Bxf5
{[%clk 0:04:21.9]} 15... exf5 {[%clk 0:04:34.6]} 16. Nbd2 {[%clk 0:04:19.5]}
16... Rhe8 {[%clk 0:04:32.8]} 17. Kf2 {[%clk 0:04:17.2]} 17... Bc5 {[%clk
0:04:31.4]} 18. Bxc5 {[%clk 0:04:13.9]} 18... Bb5 {[%clk 0:04:26.7]} 19. Nb3
{[%clk 0:04:09]} 19... Re2+ {[%clk 0:04:20.8]} 20. Kg3 {[%clk 0:04:07.2]} 20...
Rxb2 {[%clk 0:04:19.5]} 21. Bd4 {[%clk 0:04:05.3]} 21... Ne4+ {[%clk 0:04:10.9]}
22. Kh4 {[%clk 0:04:03.1]} 22... h6 {[%clk 0:04:04.2]} 23. g4 {[%clk 0:04:00.1]}
23... g5+ {[%clk 0:03:44.6]} 24. fxg5 {[%clk 0:03:57.5]} 24... hxg5+ {[%clk
0:03:40.1]} 25. Kh5 {[%clk 0:03:49.7]} 25... Rd6 {[%clk 0:03:34.4]} 26. Nxg5
{[%clk 0:03:42.6]} 26... Be8+ {[%clk 0:03:29.8]} 27. Nf7 {[%clk 0:03:29.2]}
27... Bxf7+ {[%clk 0:03:28.6]} 28. Kh4 {[%clk 0:03:26.2]} 28... Rh6# {[%clk
0:03:17.6]} 0-1

[Event "Live Chess"]
[Site "Chess.com"]
[Date "2023.05.21"]
[Round "-"]
[White "LiamBellwood"]
[Black "FlyingChessKestrel13"]
[Result "0-1"]
[WhiteElo "1902"]
[BlackElo "2071"]
[TimeControl "300"]
[EndTime "7:32:14 PDT"]
[Termination "FlyingChessKestrel13 won by resignation"]

1. d4 {[%clk 0:04:58.9]} 1... Nf6 {[%clk 0:04:58.7]} 2. Nc3 {[%clk 0:04:58.5]}
2... e6 {[%clk 0:04:57.7]} 3. Bf4 {[%clk 0:04:58.1]} 3... a6 {[%clk 0:04:53.9]}
4. e4 {[%clk 0:04:51.4]} 4... d5 {[%clk 0:04:52.6]} 5. e5 {[%clk 0:04:42.8]}
5... Nfd7 {[%clk 0:04:51.1]} 6. Nf3 {[%clk 0:04:42.4]} 6... c5 {[%clk
0:04:50.1]} 7. Ne2 {[%clk 0:04:41.8]} 7... Nc6 {[%clk 0:04:49.3]} 8. c3 {[%clk
0:04:41.1]} 8... Be7 {[%clk 0:04:46.9]} 9. Ng3 {[%clk 0:04:34.8]} 9... cxd4
{[%clk 0:04:43.2]} 10. cxd4 {[%clk 0:04:33.5]} 10... Qa5+ {[%clk 0:04:41.6]} 11.
Bd2 {[%clk 0:04:29.5]} 11... Bb4 {[%clk 0:04:40.4]} 12. Bxb4 {[%clk 0:04:25.7]}
12... Qxb4+ {[%clk 0:04:39.1]} 13. Qd2 {[%clk 0:04:25]} 13... b5 {[%clk
0:04:37]} 14. a3 {[%clk 0:04:21.4]} 14... Qxd2+ {[%clk 0:04:35.3]} 15. Kxd2
{[%clk 0:04:21.3]} 15... Bb7 {[%clk 0:04:34.3]} 16. Bd3 {[%clk 0:04:16.2]} 16...
h6 {[%clk 0:04:32.4]} 17. h4 {[%clk 0:04:14.5]} 17... Rc8 {[%clk 0:04:27]} 18.
Rac1 {[%clk 0:04:13.4]} 18... Ke7 {[%clk 0:04:24.9]} 19. Rc2 {[%clk 0:04:12.1]}
19... Na5 {[%clk 0:04:22.6]} 20. Rhc1 {[%clk 0:04:03.8]} 20... Nb3+ {[%clk
0:04:21.4]} 21. Kd1 {[%clk 0:03:59.3]} 21... Nxc1 {[%clk 0:04:20.5]} 22. Rxc1
{[%clk 0:03:59.2]} 22... Rxc1+ {[%clk 0:04:18.2]} 23. Kxc1 {[%clk 0:03:59.1]}
23... Nb6 {[%clk 0:04:17.6]} 0-1

[Event "Live Chess"]
[Site "Chess.com"]
[Date "2023.05.21"]
[Round "-"]
[White "Biranidun"]
[Black "PiotrD11"]
[Result "1-0"]
[WhiteElo "2519"]
[BlackElo "1368"]
[TimeControl "300"]
[EndTime "7:32:16 PDT"]
[Termination "Biranidun won by resignation"]

1. e4 {[%clk 0:04:48.4]} 1... d5 {[%clk 0:04:59.9]} 2. exd5 {[%clk 0:04:47.6]}
2... Nf6 {[%clk 0:04:57.7]} 3. d4 {[%clk 0:04:46.2]} 3... Nxd5 {[%clk
0:04:56.9]} 4. Nf3 {[%clk 0:04:45.1]} 4... Bf5 {[%clk 0:04:51.7]} 5. Be2 {[%clk
0:04:40.5]} 5... e6 {[%clk 0:04:50]} 6. O-O {[%clk 0:04:38.4]} 6... Bd6 {[%clk
0:04:48.4]} 7. c4 {[%clk 0:04:36.5]} 7... Nf6 {[%clk 0:04:46.7]} 8. Nc3 {[%clk
0:04:35.2]} 8... Nc6 {[%clk 0:04:43.7]} 9. Be3 {[%clk 0:04:29.9]} 9... O-O
{[%clk 0:04:41.6]} 10. h3 {[%clk 0:04:18.7]} 10... Ne7 {[%clk 0:04:38.7]} 11. c5
{[%clk 0:04:16]} 11... Ng6 {[%clk 0:04:19.8]} 12. cxd6 {[%clk 0:04:10.1]} 12...
cxd6 {[%clk 0:04:17.5]} 13. Bd3 {[%clk 0:04:07.2]} 13... Bxd3 {[%clk 0:04:15.6]}
14. Qxd3 {[%clk 0:04:07.1]} 14... Rc8 {[%clk 0:04:09.7]} 15. Rac1 {[%clk
0:04:02.8]} 15... d5 {[%clk 0:04:08.1]} 16. Bg5 {[%clk 0:03:59.7]} 16... h6
{[%clk 0:04:03.2]} 17. Bxf6 {[%clk 0:03:58.6]} 17... Qxf6 {[%clk 0:04:00.9]} 18.
Ne2 {[%clk 0:03:57.9]} 18... Nf4 {[%clk 0:03:53.4]} 19. Nxf4 {[%clk 0:03:54.8]}
19... Qxf4 {[%clk 0:03:53.3]} 20. Qe3 {[%clk 0:03:53.7]} 20... Qd6 {[%clk
0:03:47.7]} 21. Rxc8 {[%clk 0:03:49.9]} 21... Rxc8 {[%clk 0:03:46.1]} 22. Rc1
{[%clk 0:03:49.8]} 22... Rxc1+ {[%clk 0:03:44.3]} 23. Qxc1 {[%clk 0:03:49.7]}
23... Qc6 {[%clk 0:03:42.6]} 24. Qxc6 {[%clk 0:03:48.4]} 24... bxc6 {[%clk
0:03:42.5]} 25. Ne5 {[%clk 0:03:48.2]} 25... c5 {[%clk 0:03:37.4]} 26. dxc5
{[%clk 0:03:47.1]} 1-0

[Event "Live Chess"]
[Site "Chess.com"]
[Date "2023.05.21"]
[Round "-"]
[White "diana21strabt"]
[Black "bedsdrout"]
[Result "0-1"]
[WhiteElo "1742"]
[BlackElo "1545"]
[TimeControl "300"]
[EndTime "7:32:23 PDT"]
[Termination "bedsdrout won by resignation"]

1. e4 {[%clk 0:04:53.8]} 1... e5 {[%clk 0:04:53.1]} 2. Nf3 {[%clk 0:04:52.3]}
2... Nf6 {[%clk 0:04:50.4]} 3. Nxe5 {[%clk 0:04:50.6]} 3... Qe7 {[%clk
0:04:47.9]} 4. Nf3 {[%clk 0:04:39.2]} 4... Nxe4 {[%clk 0:04:37.5]} 5. Qe2 {[%clk
0:04:36]} 5... d5 {[%clk 0:04:32.3]} 6. d3 {[%clk 0:04:32.5]} 6... Nf6 {[%clk
0:04:27.2]} 7. Qxe7+ {[%clk 0:04:28.9]} 7... Bxe7 {[%clk 0:04:26]} 8. Nc3 {[%clk
0:04:27.6]} 8... O-O {[%clk 0:04:24.6]} 9. Bg5 {[%clk 0:04:26.6]} 9... Be6
{[%clk 0:04:21.3]} 10. Bxf6 {[%clk 0:04:22.5]} 10... Bxf6 {[%clk 0:04:16.3]} 11.
O-O-O {[%clk 0:04:16.2]} 11... a6 {[%clk 0:03:59.9]} 12. h4 {[%clk 0:04:11.8]}
12... Re8 {[%clk 0:03:48.7]} 13. g3 {[%clk 0:04:05.7]} 13... Nd7 {[%clk
0:03:40.4]} 14. Bg2 {[%clk 0:04:03.4]} 14... c6 {[%clk 0:03:13.7]} 15. Rhe1
{[%clk 0:03:57]} 15... Bg4 {[%clk 0:03:09.5]} 16. Kd2 {[%clk 0:03:44.1]} 16...
Ne5 {[%clk 0:02:48.5]} 17. Re3 {[%clk 0:03:32.4]} 17... Bxf3 {[%clk 0:02:44.2]}
18. Bxf3 {[%clk 0:03:31]} 18... d4 {[%clk 0:02:40.7]} 19. Rxe5 {[%clk 0:03:28]}
19... dxc3+ {[%clk 0:02:37.2]} 20. bxc3 {[%clk 0:03:25.1]} 20... Rxe5 {[%clk
0:02:32.8]} 21. Rb1 {[%clk 0:03:23.7]} 21... Rf5 {[%clk 0:02:29]} 22. Ke3 {[%clk
0:03:14.6]} 22... Rb5 {[%clk 0:02:23.3]} 23. Rd1 {[%clk 0:03:07]} 23... Re8+
{[%clk 0:02:18.3]} 24. Be4 {[%clk 0:03:02.2]} 24... Bxc3 {[%clk 0:02:14.2]} 25.
g4 {[%clk 0:03:00.6]} 25... Rb2 {[%clk 0:02:11.1]} 26. h5 {[%clk 0:02:55]} 26...
g6 {[%clk 0:02:08]} 27. hxg6 {[%clk 0:02:53.7]} 27... hxg6 {[%clk 0:02:04.3]}
28. d4 {[%clk 0:02:49.9]} 28... Rxc2 {[%clk 0:02:00.4]} 29. Kd3 {[%clk
0:02:45.7]} 29... Rxf2 {[%clk 0:01:55]} 30. Kxc3 {[%clk 0:02:38.3]} 30... Rxe4
{[%clk 0:01:51.4]} 0-1

[Event "Live Chess"]
[Site "Chess.com"]
[Date "2023.05.21"]
[Round "-"]
[White "Inglaterra"]
[Black "Olisingapore"]
[Result "1-0"]
[WhiteElo "2054"]
[BlackElo "1782"]
[TimeControl "300"]
[EndTime "7:32:24 PDT"]
[Termination "Inglaterra won by checkmate"]

1. d4 {[%clk 0:04:58.1]} 1... Nf6 {[%clk 0:04:56.6]} 2. Nf3 {[%clk 0:04:56]}
2... d5 {[%clk 0:04:55.1]} 3. c4 {[%clk 0:04:53.3]} 3... c5 {[%clk 0:04:52.1]}
4. cxd5 {[%clk 0:04:42.8]} 4... Nxd5 {[%clk 0:04:48.6]} 5. e4 {[%clk 0:04:35.2]}
5... Nf6 {[%clk 0:04:37.2]} 6. d5 {[%clk 0:04:30.1]} 6... e6 {[%clk 0:04:21.8]}
7. Nc3 {[%clk 0:04:27.3]} 7... exd5 {[%clk 0:04:19]} 8. exd5 {[%clk 0:04:25.5]}
8... Bd6 {[%clk 0:04:17.3]} 9. Bb5+ {[%clk 0:04:22.4]} 9... Bd7 {[%clk
0:04:14.9]} 10. O-O {[%clk 0:04:13.7]} 10... O-O {[%clk 0:04:13]} 11. Bg5 {[%clk
0:04:07]} 11... Bxb5 {[%clk 0:04:10]} 12. Nxb5 {[%clk 0:04:05.2]} 12... a6
{[%clk 0:04:08.7]} 13. Nxd6 {[%clk 0:04:01.1]} 13... Qxd6 {[%clk 0:04:08.6]} 14.
Qd2 {[%clk 0:03:26.4]} 14... Ne4 {[%clk 0:03:34.4]} 15. Qe3 {[%clk 0:03:18.8]}
15... f5 {[%clk 0:03:31.3]} 16. Rad1 {[%clk 0:03:09.7]} 16... Nd7 {[%clk
0:03:24.4]} 17. Bf4 {[%clk 0:03:07.6]} 17... Qf6 {[%clk 0:03:04.3]} 18. Nd2
{[%clk 0:02:51.5]} 18... Qxb2 {[%clk 0:02:58]} 19. Nxe4 {[%clk 0:02:47.7]} 19...
fxe4 {[%clk 0:02:56.1]} 20. Qxe4 {[%clk 0:02:46.2]} 20... Rae8 {[%clk
0:02:49.8]} 21. Qc4 {[%clk 0:02:39.8]} 21... Nb6 {[%clk 0:02:45.9]} 22. Qxc5
{[%clk 0:02:23]} 22... Rxf4 {[%clk 0:02:38.4]} 23. Rb1 {[%clk 0:02:21.5]} 23...
Qf6 {[%clk 0:02:36.1]} 24. Qxb6 {[%clk 0:02:13.8]} 24... Qxb6 {[%clk 0:02:19.8]}
25. Rxb6 {[%clk 0:02:13.7]} 25... Rd8 {[%clk 0:02:18.4]} 26. Rd1 {[%clk
0:02:08.5]} 26... Rd7 {[%clk 0:02:14.7]} 27. g3 {[%clk 0:02:04.2]} 27... Rc4
{[%clk 0:02:13]} 28. Rd2 {[%clk 0:01:58.7]} 28... Kf7 {[%clk 0:02:10.8]} 29. Kf1
{[%clk 0:01:54.6]} 29... Rc5 {[%clk 0:02:07.5]} 30. d6 {[%clk 0:01:51.9]} 30...
Rc6 {[%clk 0:02:05.2]} 31. Rxc6 {[%clk 0:01:50]} 31... bxc6 {[%clk 0:02:05.1]}
32. Ke2 {[%clk 0:01:36.3]} 32... Ke6 {[%clk 0:02:03.9]} 33. Rd4 {[%clk
0:01:28.2]} 33... Rxd6 {[%clk 0:02:01.4]} 34. Ra4 {[%clk 0:01:26.4]} 34... c5
{[%clk 0:01:59.8]} 35. Ke3 {[%clk 0:01:24.3]} 35... Kd5 {[%clk 0:01:57.7]} 36.
Rg4 {[%clk 0:01:20.2]} 36... g6 {[%clk 0:01:55.9]} 37. h4 {[%clk 0:01:18.9]}
37... c4 {[%clk 0:01:48.9]} 38. Rd4+ {[%clk 0:01:16.2]} 38... Kc5 {[%clk
0:01:47.5]} 39. Rxd6 {[%clk 0:01:15.3]} 39... Kxd6 {[%clk 0:01:46.6]} 40. Kd4
{[%clk 0:01:15.1]} 40... Kc6 {[%clk 0:01:46.1]} 41. Kxc4 {[%clk 0:01:14.3]}
41... Kd6 {[%clk 0:01:44.4]} 42. a4 {[%clk 0:01:12.3]} 42... Ke5 {[%clk
0:01:43.9]} 43. a5 {[%clk 0:01:08.7]} 43... Ke4 {[%clk 0:01:43.2]} 44. Kc5
{[%clk 0:01:07.9]} 44... Kf3 {[%clk 0:01:42.8]} 45. Kb6 {[%clk 0:01:07.8]} 45...
Kxf2 {[%clk 0:01:42.6]} 46. Kxa6 {[%clk 0:01:07.4]} 46... Kxg3 {[%clk
0:01:42.5]} 47. Kb5 {[%clk 0:01:06.7]} 47... Kxh4 {[%clk 0:01:42.4]} 48. a6
{[%clk 0:01:06]} 48... g5 {[%clk 0:01:42.3]} 49. a7 {[%clk 0:01:05.7]} 49... g4
{[%clk 0:01:42.2]} 50. a8=Q {[%clk 0:01:05.2]} 50... g3 {[%clk 0:01:42.1]} 51.
Qg2 {[%clk 0:01:02.3]} 51... h5 {[%clk 0:01:40.9]} 52. Kc5 {[%clk 0:01:01.9]}
52... Kg4 {[%clk 0:01:40.2]} 53. Kd5 {[%clk 0:00:59.4]} 53... h4 {[%clk
0:01:39.7]} 54. Ke4 {[%clk 0:00:57.5]} 54... h3 {[%clk 0:01:39.2]} 55. Qf3+
{[%clk 0:00:56.9]} 55... Kh4 {[%clk 0:01:37.9]} 56. Kf5 {[%clk 0:00:55.5]} 56...
h2 {[%clk 0:01:37]} 57. Qg4# {[%clk 0:00:54.9]} 1-0

[Event "Live Chess"]
[Site "Chess.com"]
[Date "2023.05.21"]
[Round "-"]
[White "NotHarryV"]
[Black "AbilifyXL"]
[Result "0-1"]
[WhiteElo "1514"]
[BlackElo "1989"]
[TimeControl "300"]
[EndTime "7:32:25 PDT"]
[Termination "AbilifyXL won by resignation"]

1. d4 {[%clk 0:04:57.7]} 1... d5 {[%clk 0:04:59.9]} 2. c4 {[%clk 0:04:56.8]}
2... c6 {[%clk 0:04:59.6]} 3. Nf3 {[%clk 0:04:56]} 3... Nf6 {[%clk 0:04:59]} 4.
Nc3 {[%clk 0:04:55.4]} 4... a6 {[%clk 0:04:58.5]} 5. cxd5 {[%clk 0:04:52.9]}
5... cxd5 {[%clk 0:04:57.4]} 6. Bg5 {[%clk 0:04:51.5]} 6... e6 {[%clk
0:04:55.9]} 7. e4 {[%clk 0:04:37]} 7... dxe4 {[%clk 0:04:50.1]} 8. Nxe4 {[%clk
0:04:35]} 8... Nbd7 {[%clk 0:04:48.9]} 9. Be2 {[%clk 0:04:15.5]} 9... Be7 {[%clk
0:04:38.3]} 10. Nxf6+ {[%clk 0:04:12.5]} 10... Nxf6 {[%clk 0:04:37.3]} 11. O-O
{[%clk 0:04:08.1]} 11... O-O {[%clk 0:04:36.2]} 12. Bd3 {[%clk 0:03:57.7]} 12...
b5 {[%clk 0:04:33.8]} 13. Qc2 {[%clk 0:03:55.1]} 13... h6 {[%clk 0:04:31.8]} 14.
Bxf6 {[%clk 0:03:53.3]} 14... Bxf6 {[%clk 0:04:30.7]} 15. Rad1 {[%clk
0:03:47.9]} 15... Bb7 {[%clk 0:04:29.2]} 16. Be4 {[%clk 0:03:43.1]} 16... Bd5
{[%clk 0:04:25.6]} 17. Bxd5 {[%clk 0:03:38.7]} 17... Qxd5 {[%clk 0:04:24.5]} 18.
b3 {[%clk 0:03:28.8]} 18... Rac8 {[%clk 0:04:22.7]} 19. Qd3 {[%clk 0:03:22]}
19... Rfd8 {[%clk 0:04:21.1]} 20. h4 {[%clk 0:03:09.6]} 20... e5 {[%clk
0:04:19.2]} 21. dxe5 {[%clk 0:02:41.8]} 21... Qxd3 {[%clk 0:04:15.7]} 22. Rxd3
{[%clk 0:02:41]} 22... Rxd3 {[%clk 0:04:14.8]} 23. exf6 {[%clk 0:02:40.4]} 23...
gxf6 {[%clk 0:04:13.3]} 24. Re1 {[%clk 0:02:34.4]} 24... Kg7 {[%clk 0:04:08.7]}
25. Re4 {[%clk 0:02:28.2]} 25... Rc2 {[%clk 0:03:56.7]} 26. a4 {[%clk
0:02:15.3]} 26... Rxb3 {[%clk 0:03:52.7]} 27. axb5 {[%clk 0:02:13.9]} 27... axb5
{[%clk 0:03:52.5]} 28. Kh2 {[%clk 0:02:09.2]} 28... Rc4 {[%clk 0:03:50.6]} 29.
Rxc4 {[%clk 0:02:04.1]} 29... bxc4 {[%clk 0:03:49.2]} 30. Nd4 {[%clk 0:01:51.2]}
30... Rd3 {[%clk 0:03:44.9]} 31. Nf5+ {[%clk 0:01:48.9]} 31... Kh7 {[%clk
0:03:39.2]} 32. g4 {[%clk 0:01:44.1]} 32... c3 {[%clk 0:03:37.7]} 0-1

[Event "Live Chess"]
[Site "Chess.com"]
[Date "2023.05.21"]
[Round "-"]
[White "Tiltador"]
[Black "RichardABates"]
[Result "0-1"]
[WhiteElo "874"]
[BlackElo "2144"]
[TimeControl "300"]
[EndTime "7:32:28 PDT"]
[Termination "RichardABates won by checkmate"]

1. e4 {[%clk 0:04:57]} 1... c5 {[%clk 0:04:58.2]} 2. f3 {[%clk 0:04:55.7]} 2...
Nc6 {[%clk 0:04:55.8]} 3. d3 {[%clk 0:04:54.7]} 3... d5 {[%clk 0:04:54.2]} 4. g3
{[%clk 0:04:50.3]} 4... Nf6 {[%clk 0:04:49]} 5. Bg2 {[%clk 0:04:48.9]} 5... e5
{[%clk 0:04:43.8]} 6. Bg5 {[%clk 0:04:42.1]} 6... d4 {[%clk 0:04:39.5]} 7. Nd2
{[%clk 0:04:36.9]} 7... h6 {[%clk 0:04:37.6]} 8. Bxf6 {[%clk 0:04:34.9]} 8...
Qxf6 {[%clk 0:04:36.1]} 9. Nc4 {[%clk 0:04:32.6]} 9... b5 {[%clk 0:04:30.5]} 10.
Nd2 {[%clk 0:04:29]} 10... c4 {[%clk 0:04:21.8]} 11. Nh3 {[%clk 0:04:21.4]}
11... c3 {[%clk 0:04:18.5]} 12. bxc3 {[%clk 0:04:13.9]} 12... dxc3 {[%clk
0:04:17.5]} 13. Nb3 {[%clk 0:04:12.3]} 13... a5 {[%clk 0:04:16]} 14. O-O {[%clk
0:04:04.9]} 14... a4 {[%clk 0:04:14.6]} 15. Nc1 {[%clk 0:04:02.5]} 15... Bc5+
{[%clk 0:04:11.2]} 16. Kh1 {[%clk 0:03:58.7]} 16... g5 {[%clk 0:04:08.5]} 17. g4
{[%clk 0:03:52]} 17... h5 {[%clk 0:04:00.9]} 18. Nf2 {[%clk 0:03:30.8]} 18...
Bxf2 {[%clk 0:03:46.3]} 19. Rxf2 {[%clk 0:03:25.3]} 19... hxg4 {[%clk
0:03:45.1]} 20. Rf1 {[%clk 0:03:13]} 20... Qf4 {[%clk 0:03:40.4]} 21. h3 {[%clk
0:03:01.7]} 21... gxh3 {[%clk 0:03:38]} 22. Ne2 {[%clk 0:02:51.1]} 22... hxg2+
{[%clk 0:03:35.2]} 23. Kxg2 {[%clk 0:02:48.1]} 23... Qh2# {[%clk 0:03:34]} 0-1

[Event "Live Chess"]
[Site "Chess.com"]
[Date "2023.05.21"]
[Round "-"]
[White "wadsy27"]
[Black "JanMur7"]
[Result "1-0"]
[WhiteElo "2547"]
[BlackElo "1969"]
[TimeControl "300"]
[EndTime "7:32:38 PDT"]
[Termination "wadsy27 won by checkmate"]

1. Nf3 {[%clk 0:04:57]} 1... g6 {[%clk 0:04:56]} 2. d4 {[%clk 0:04:51.2]} 2...
Bg7 {[%clk 0:04:55.3]} 3. c4 {[%clk 0:04:50.6]} 3... c5 {[%clk 0:04:55.2]} 4. d5
{[%clk 0:04:49.6]} 4... Qa5+ {[%clk 0:04:53.3]} 5. Bd2 {[%clk 0:04:42.7]} 5...
Qb6 {[%clk 0:04:51.7]} 6. Nc3 {[%clk 0:04:35.5]} 6... d6 {[%clk 0:04:45.2]} 7.
Qc2 {[%clk 0:04:31]} 7... Bg4 {[%clk 0:04:35.8]} 8. h3 {[%clk 0:04:26.2]} 8...
Bxf3 {[%clk 0:04:28.9]} 9. exf3 {[%clk 0:04:26.1]} 9... Nd7 {[%clk 0:04:17.7]}
10. f4 {[%clk 0:04:23.3]} 10... Nh6 {[%clk 0:04:03.3]} 11. Bd3 {[%clk 0:04:20]}
11... O-O {[%clk 0:03:51.4]} 12. O-O {[%clk 0:04:18.9]} 12... Rfe8 {[%clk
0:03:44.7]} 13. Rae1 {[%clk 0:04:14.4]} 13... Kh8 {[%clk 0:03:18.5]} 14. b3
{[%clk 0:04:12.2]} 14... Ng8 {[%clk 0:03:09.6]} 15. f5 {[%clk 0:04:10.5]} 15...
Ngf6 {[%clk 0:02:57]} 16. fxg6 {[%clk 0:04:03.1]} 16... hxg6 {[%clk 0:02:56.8]}
17. Ne4 {[%clk 0:03:49.8]} 17... Ne5 {[%clk 0:02:38.9]} 18. Ng5 {[%clk
0:03:43.9]} 18... Kg8 {[%clk 0:02:15.1]} 19. f4 {[%clk 0:03:13.9]} 19... Nxd3
{[%clk 0:02:12.9]} 20. Qxd3 {[%clk 0:03:13.8]} 20... Qc7 {[%clk 0:01:40.9]} 21.
f5 {[%clk 0:03:10.9]} 21... gxf5 {[%clk 0:01:39.7]} 22. Rxf5 {[%clk 0:03:06.1]}
22... Qd7 {[%clk 0:01:36.8]} 23. Ref1 {[%clk 0:02:57.1]} 23... b5 {[%clk
0:01:33.4]} 24. Qg3 {[%clk 0:02:48.5]} 24... bxc4 {[%clk 0:01:25.9]} 25. Ne6
{[%clk 0:02:43.5]} 25... fxe6 {[%clk 0:01:06.4]} 26. Bh6 {[%clk 0:02:42.5]}
26... exf5 {[%clk 0:00:55.3]} 27. Qxg7# {[%clk 0:02:39.9]} 1-0

[Event "Live Chess"]
[Site "Chess.com"]
[Date "2023.05.21"]
[Round "-"]
[White "f4nomore"]
[Black "martynstanley"]
[Result "1-0"]
[WhiteElo "1401"]
[BlackElo "1028"]
[TimeControl "300"]
[EndTime "7:32:49 PDT"]
[Termination "f4nomore won by checkmate"]

1. e3 {[%clk 0:04:58.2]} 1... e6 {[%clk 0:04:59.3]} 2. Nf3 {[%clk 0:04:56.1]}
2... d5 {[%clk 0:04:58.7]} 3. Be2 {[%clk 0:04:54.8]} 3... c5 {[%clk 0:04:58]} 4.
O-O {[%clk 0:04:53.5]} 4... Nc6 {[%clk 0:04:57.4]} 5. d4 {[%clk 0:04:48.6]} 5...
b6 {[%clk 0:04:56.4]} 6. c3 {[%clk 0:04:45.3]} 6... Bb7 {[%clk 0:04:55.5]} 7.
Na3 {[%clk 0:04:43.8]} 7... Qc7 {[%clk 0:04:54.2]} 8. Nc2 {[%clk 0:04:41.6]}
8... f6 {[%clk 0:04:51.5]} 9. dxc5 {[%clk 0:04:37.6]} 9... Bxc5 {[%clk
0:04:50.1]} 10. Ncd4 {[%clk 0:04:33.6]} 10... e5 {[%clk 0:04:48]} 11. Nxc6
{[%clk 0:04:31]} 11... Qxc6 {[%clk 0:04:47.2]} 12. b4 {[%clk 0:04:24.8]} 12...
Bxb4 {[%clk 0:04:43.3]} 13. cxb4 {[%clk 0:04:18.3]} 13... O-O-O {[%clk
0:04:42.3]} 14. Ba3 {[%clk 0:04:14.7]} 14... Kb8 {[%clk 0:04:41.3]} 15. Rc1
{[%clk 0:04:10.9]} 15... Qd6 {[%clk 0:04:39.2]} 16. Qd3 {[%clk 0:04:07.2]} 16...
d4 {[%clk 0:04:38.1]} 17. b5 {[%clk 0:04:01.1]} 17... g5 {[%clk 0:04:35.8]} 18.
Bxd6+ {[%clk 0:03:58.3]} 18... Rxd6 {[%clk 0:04:34.7]} 19. Nh4 {[%clk
0:03:53.4]} 19... gxh4 {[%clk 0:04:32.3]} 20. Qf5 {[%clk 0:03:41.8]} 20... Ne7
{[%clk 0:04:31.4]} 21. Qh3 {[%clk 0:03:37.9]} 21... Rg8 {[%clk 0:04:28.9]} 22.
f3 {[%clk 0:03:33.3]} 22... dxe3 {[%clk 0:04:25.4]} 23. Qxh4 {[%clk 0:03:29.1]}
23... Rd2 {[%clk 0:04:22.9]} 24. Rce1 {[%clk 0:03:13.2]} 24... Rxa2 {[%clk
0:04:21.4]} 25. Qxf6 {[%clk 0:03:08.7]} 25... Re8 {[%clk 0:04:18.3]} 26. Qxe5+
{[%clk 0:02:56.2]} 26... Kc8 {[%clk 0:04:16.6]} 27. Qe6+ {[%clk 0:02:50.9]}
27... Kd8 {[%clk 0:04:15.3]} 28. Qxa2 {[%clk 0:02:49.4]} 28... Nd5 {[%clk
0:04:13.1]} 29. Qxa7 {[%clk 0:02:46.7]} 29... Kc7 {[%clk 0:04:11.4]} 30. Rc1+
{[%clk 0:02:43.5]} 30... Kd6 {[%clk 0:04:09.2]} 31. Qxb7 {[%clk 0:02:38]} 31...
Nb4 {[%clk 0:04:06.2]} 32. Qxh7 {[%clk 0:02:32.9]} 32... Re7 {[%clk 0:04:05.2]}
33. Qg6+ {[%clk 0:02:30.1]} 33... Re6 {[%clk 0:04:04.4]} 34. Rfd1+ {[%clk
0:02:27.7]} 34... Ke5 {[%clk 0:04:02.8]} 35. Qg5# {[%clk 0:02:22.5]} 1-0

[Event "Live Chess"]
[Site "Chess.com"]
[Date "2023.05.21"]
[Round "-"]
[White "robotking06"]
[Black "domrobson"]
[Result "0-1"]
[WhiteElo "308"]
[BlackElo "1747"]
[TimeControl "300"]
[EndTime "7:33:01 PDT"]
[Termination "domrobson won by checkmate"]

1. e4 {[%clk 0:04:54.4]} 1... e5 {[%clk 0:04:59.5]} 2. Nf3 {[%clk 0:04:51.7]}
2... Nc6 {[%clk 0:04:59.2]} 3. Nc3 {[%clk 0:04:50.2]} 3... Nf6 {[%clk
0:04:58.3]} 4. Nxe5 {[%clk 0:04:48.5]} 4... Nxe5 {[%clk 0:04:54.8]} 5. f3 {[%clk
0:04:46.4]} 5... d6 {[%clk 0:04:48.8]} 6. Ba6 {[%clk 0:04:43.7]} 6... bxa6
{[%clk 0:04:47.1]} 7. Qe2 {[%clk 0:04:42.1]} 7... a5 {[%clk 0:04:45.6]} 8. Qa6
{[%clk 0:04:40.4]} 8... Bxa6 {[%clk 0:04:44.2]} 9. Nb5 {[%clk 0:04:38.8]} 9...
Bxb5 {[%clk 0:04:43.2]} 10. d4 {[%clk 0:04:29.8]} 10... Nc4 {[%clk 0:04:41.3]}
11. d5 {[%clk 0:04:28.5]} 11... c6 {[%clk 0:04:39.2]} 12. Bd2 {[%clk 0:04:24.9]}
12... Nxd2 {[%clk 0:04:37.7]} 13. Rb1 {[%clk 0:04:22.5]} 13... cxd5 {[%clk
0:04:37.6]} 14. Rf1 {[%clk 0:04:16.6]} 14... Nxb1 {[%clk 0:04:36.1]} 15. Kf2
{[%clk 0:04:11.1]} 15... Bxf1 {[%clk 0:04:36]} 16. Kg3 {[%clk 0:04:08.2]} 16...
dxe4 {[%clk 0:04:35.1]} 17. Kf4 {[%clk 0:04:07.5]} 17... d5 {[%clk 0:04:32.3]}
18. Ke5 {[%clk 0:04:05.9]} 18... Qd6+ {[%clk 0:04:29.5]} 19. Kd4 {[%clk
0:04:04.5]} 19... Qc5+ {[%clk 0:04:28.5]} 20. Ke5 {[%clk 0:04:03.2]} 20... Bd6+
{[%clk 0:04:28.2]} 21. Kf5 {[%clk 0:04:02.1]} 21... exf3 {[%clk 0:04:24.9]} 22.
Kg5 {[%clk 0:04:00.6]} 22... fxg2 {[%clk 0:04:23.9]} 23. Kf5 {[%clk 0:03:59]}
23... g1=Q {[%clk 0:04:23.2]} 24. c3 {[%clk 0:03:54]} 24... Qg6# {[%clk
0:04:23.1]} 0-1